fUSD/lending_fUSD_20260213
["ID","MTS","AMOUNT","RATE_DAILY","PERIOD"]
[405299419,1770969048977,-1438.79,0.00016999,2]
[405299420,1770969048987,-1438.79,0.00016999,2]
[405299421,1770969048996,-1438.79,0.00016999,2]
[405299422,1770969049006,-1438.79,0.00016999,2]
[405299423,1770969049016,-1438.79,0.00016999,2]
[405299424,1770969049026,-1438.88770196,0.00016999,2]
[405299425,1770969049036,-591.31,0.00016999,2]
[405299426,1770969049045,-591.31,0.00016999,2]
[405299427,1770969049055,-591.31,0.00016999,2]
[405299428,1770969049064,-591.31,0.00016999,2]
[405299429,1770969049075,-591.31,0.00016999,2]
[405299430,1770969049084,-591.31,0.00016999,2]
[405299431,1770969049093,-591.40700258,0.00016999,2]
[405299432,1770969049103,-1197.3,0.00016999,2]
[405299433,1770969049112,-1197.3,0.00016999,2]
[405299434,1770969049121,-1197.3,0.00016999,2]
[405299435,1770969049130,-1197.3,0.00016999,2]
[405299436,1770969049139,-1197.3,0.00016999,2]
[405299437,1770969049147,-1197.3,0.00016999,2]
[405299438,1770969049155,-1197.32571045,0.00016999,2]
[405299439,1770969049164,-581.0,0.00016999,2]
[405299440,1770969049173,-581.0,0.00016999,2]
[405299441,1770969049182,-581.0,0.00016999,2]
[405299442,1770969049191,-581.0,0.00016999,2]
[405299443,1770969049201,-581.0,0.00016999,2]
[405299444,1770969049209,-581.0,0.00016999,2]
[405299445,1770969049219,-581.0,0.00016999,2]
[405299446,1770969049230,-581.07213972,0.00016999,2]
[405299447,1770969049239,-866.73,0.00016999,2]
[405299448,1770969049249,-866.73,0.00016999,2]
[405299449,1770969049258,-866.73,0.00016999,2]
[405299450,1770969049268,-866.73,0.00016999,2]
[405299451,1770969049277,-866.73,0.00016999,2]
[405299452,1770969049287,-866.73,0.00016999,2]
[405299453,1770969049297,-866.73,0.00016999,2]
[405299454,1770969049307,-866.78276592,0.00016999,2]
[405299455,1770969049317,-1410.82,0.00016999,2]
[405299456,1770969049326,-1410.82,0.00016999,2]
[405299457,1770969049336,-1410.82,0.00016999,2]
[405299458,1770969049345,-1410.82,0.00016999,2]
[405299459,1770969049353,-1410.82,0.00016999,2]
[405299460,1770969049369,-1410.82,0.00016999,2]
[405299461,1770969049378,-1411.00509654,0.00016999,2]
[405299462,1770969049387,-500.0,0.00016999,2]
[405299463,1770969049396,-500.0,0.00016999,2]
[405299464,1770969049405,-616.69513236,0.00016999,2]
[405299465,1770969049414,-722.32,0.00016999,2]
[405299466,1770969049423,-722.32,0.00016999,2]
[405299467,1770969049432,-722.32,0.00016999,2]
[405299468,1770969049441,-722.32,0.00016999,2]
[405299469,1770969049451,-500.0,0.00016999,2]
[405299470,1770969049461,-500.0,0.00016999,2]
[405299471,1770969049471,-500.0,0.00016999,2]
[405299472,1770969049480,-500.0,0.00016999,2]
[405299473,1770969049490,-500.0,0.00016999,2]
[405299474,1770969049499,-500.0,0.00016999,2]
[405299475,1770969049509,-244.9557617,0.00016999,2]
[405299476,1770969049518,-500.0,0.00016999,2]
[405299477,1770969049528,-500.0,0.00016999,2]
[405299478,1770969049539,-500.0,0.00016999,2]
[405299479,1770969049550,-500.0,0.00016999,2]
[405299480,1770969049559,-495.54112114,0.00016999,2]
[405299481,1770969049568,-500.0,0.00016999,2]
[405299482,1770969049580,-500.0,0.00016999,2]
[405299483,1770969049590,-500.0,0.00016999,2]
[405299484,1770969049599,-500.0,0.00016999,2]
[405299485,1770969049609,-616.8,0.00016999,2]
[405299486,1770969049619,-616.8,0.00016999,2]
[405299487,1770969049628,-616.8,0.00016999,2]
[405299488,1770969049638,-616.8,0.00016999,2]
[405299489,1770969049647,-1137.19,0.00016999,2]
[405299490,1770969049656,-1137.19,0.00016999,2]
[405299491,1770969049665,-1137.19,0.00016999,2]
[405299492,1770969049674,-1137.19,0.00016999,2]
[405299493,1770969049684,-500.0,0.00016999,2]
[405299494,1770969049693,-502.60181958,0.00016999,2]
[405299495,1770969049738,-990345.30744029,0.00017,2]
[405299496,1770969049747,-5011.05525888,0.00017,2]
[405299497,1770969049757,-300.0,0.00017,2]
[405299498,1770969049766,-826.39687965,0.00017,2]
[405299499,1770969049776,-520.30185575,0.00017,2]
[405299500,1770969049785,-67809.17646588,0.00017101,2]
[405299501,1770969049795,-5531.0,0.000172,3]
[405299502,1770969049805,-1516.46648451,0.00017268,2]
[405299503,1770969049815,-1500.0,0.00017268,2]
[405299504,1770969049825,-885.22876049,0.00017268,2]
[405299505,1770969049834,-501.69367829,0.00017268,2]
[405299506,1770969049844,-504.47861685,0.00017268,2]
[405299507,1770969049853,-1492.57355052,0.00017268,2]
[405299508,1770969049863,-1170.51466036,0.00017268,2]
[405299509,1770969049872,-1500.0,0.00017268,2]
[405299510,1770969049881,-1500.0,0.00017268,2]
[405299511,1770969049890,-1500.0,0.00017268,2]
[405299512,1770969049900,-1189.48508618,0.00017268,2]
[405299513,1770969049910,-1000.0,0.00017268,2]
[405299514,1770969049919,-1500.0,0.00017268,2]
[405299515,1770969049928,-395.07222913,0.00017268,2]
[405299516,1770969049937,-1511.15532906,0.00017268,2]
[405299517,1770969049946,-594.1463812,0.00017268,2]
[405299518,1770969049956,-505.92637205,0.00017268,2]
[405299519,1770969049966,-1500.0,0.00017268,2]
[405299520,1770969049976,-800.97860377,0.00017268,2]
[405299521,1770969049985,-1500.0,0.00017268,2]
[405299522,1770969049995,-530.73212688,0.00017268,2]
[405299523,1770969050004,-44835.44657735,0.00017333,2]
[405299524,1770969050013,-5531.0,0.000174,5]
[405299525,1770969050023,-947.61473378,0.00017508,2]
[405299526,1770969050032,-783.90308371,0.000177,2]
[405299527,1770969050042,-200.0,0.000177,6]
[405299528,1770969050052,-150.0,0.00017711,2]
[405299529,1770969050062,-150.0,0.00017711,2]
[405299530,1770969050073,-150.0,0.00017711,2]
[405299531,1770969050082,-150.0,0.00017711,2]
[405299532,1770969050092,-150.0,0.00017711,2]
[405299533,1770969050102,-150.0,0.00017711,2]
[405299534,1770969050113,-150.0,0.00017711,2]
[405299535,1770969050124,-150.0,0.00017711,2]
[405299536,1770969050135,-150.0,0.00017711,2]
[405299537,1770969050145,-481.89542729,0.00017743,2]
[405299538,1770969050154,-481.89542728,0.00017743,2]
[405299539,1770969050164,-200.0,0.000178,6]
[405299540,1770969050173,-500.0,0.00017808,2]
[405299541,1770969050183,-590.06625268,0.00017808,2]
[405299542,1770969050192,-590.06625268,0.00017808,2]
[405299543,1770969050202,-590.06625268,0.00017808,2]
[405299544,1770969050211,-590.06625268,0.00017808,2]
[405299545,1770969050220,-590.06625268,0.00017808,2]
[405299546,1770969050231,-590.06625268,0.00017808,2]
[405299547,1770969050241,-590.06625268,0.00017808,2]
[405299548,1770969050251,-590.06625268,0.00017808,2]
[405299549,1770969050260,-590.06625268,0.00017808,2]
[405299550,1770969050270,-590.06625268,0.00017808,2]
[405299551,1770969050280,-590.06625268,0.00017808,2]
[405299552,1770969050291,-590.06625268,0.00017808,2]
[405299553,1770969050301,-590.06625268,0.00017808,2]
[405299554,1770969050312,-590.06625268,0.00017808,2]
[405299555,1770969050322,-590.06625268,0.00017808,2]
[405299556,1770969050332,-590.06625268,0.00017808,2]
[405299557,1770969050342,-590.06625268,0.00017808,2]
[405299558,1770969050353,-590.06625268,0.00017808,2]
[405299559,1770969050363,-590.06625268,0.00017808,2]
[405299560,1770969050376,-590.06625268,0.00017808,2]
[405299561,1770969050387,-590.06625268,0.00017808,2]
[405299562,1770969050396,-590.06625268,0.00017808,2]
[405299563,1770969050406,-590.06625268,0.00017808,2]
[405299564,1770969050415,-590.06625268,0.00017808,2]
[405299565,1770969050424,-590.06625268,0.00017808,2]
[405299566,1770969050437,-590.06625268,0.00017808,2]
[405299567,1770969050446,-590.06625268,0.00017808,2]
[405299568,1770969050455,-800.0,0.00017808,2]
[405299569,1770969050465,-2000.0,0.00017816,2]
[405299570,1770969050475,-2000.0,0.00017816,2]
[405299571,1770969050487,-2000.0,0.00017816,2]
[405299572,1770969050496,-2008.47777759,0.00017816,2]
[405299573,1770969050506,-1503.05497251,0.00017816,2]
[405299574,1770969050516,-939.8305345,0.00017816,2]
[405299575,1770969050527,-1205.1081519,0.00017816,2]
[405299576,1770969050538,-1003.56652033,0.0001786,2]
[405299577,1770969050551,-500.0,0.00017863,2]
[405299578,1770969050560,-1834.0,0.00017878,2]
[405299579,1770969050571,-551.80732987,0.000179,2]
[405299580,1770969050584,-711.93058663,0.000179,2]
[405299581,1770969050595,-44835.44657735,0.000179,2]
[405299582,1770969050604,-67809.17646588,0.000179,2]
[405299583,1770969050616,-200.0,0.000179,6]
[405299584,1770969050625,-195.53600731,0.000179,2]
[405299585,1770969050634,-237.28623341,0.000179,2]
[405299586,1770969050644,-762.81646816,0.000179,2]
[405299587,1770969050653,-6703.36655457,0.000179,2]
[405299588,1770969050663,-6147.78184035,0.000179,2]
[405299589,1770969050672,-2084.57169632,0.000179,2]
[405299590,1770969050681,-500.0,0.000179,2]
[405299591,1770969050691,-500.0,0.000179,2]
[405299592,1770969050700,-500.0,0.000179,2]
[405299593,1770969050710,-500.0,0.000179,2]
[405299594,1770969050719,-500.0,0.000179,2]
[405299595,1770969050729,-500.0,0.000179,2]
[405299596,1770969050738,-500.0,0.000179,2]
[405299597,1770969050748,-500.0,0.000179,2]
[405299598,1770969050757,-500.0,0.000179,2]
[405299599,1770969050767,-500.0,0.000179,2]
[405299600,1770969050778,-500.0,0.000179,2]
[405299601,1770969050788,-500.0,0.000179,2]
[405299602,1770969050798,-500.0,0.000179,2]
[405299603,1770969050808,-500.0,0.000179,2]
[405299604,1770969050818,-500.0,0.000179,2]
[405299605,1770969050829,-500.0,0.000179,2]
[405299606,1770969050839,-500.0,0.000179,2]
[405299607,1770969050848,-500.0,0.000179,2]
[405299608,1770969050857,-500.0,0.000179,2]
[405299609,1770969050867,-500.0,0.000179,2]
[405299610,1770969050879,-500.0,0.000179,2]
[405299611,1770969050889,-500.0,0.000179,2]
[405299612,1770969050900,-500.0,0.000179,2]
[405299613,1770969050911,-500.0,0.000179,2]
[405299614,1770969050922,-500.0,0.000179,2]
[405299615,1770969050932,-500.0,0.000179,2]
[405299616,1770969050942,-500.0,0.000179,2]
[405299617,1770969050952,-500.0,0.00017918,2]
[405299618,1770969050961,-500.49095607,0.00017959,3]
[405299619,1770969050971,-500.0,0.00017972,2]
[405299620,1770969050980,-1134.57971248,0.00017999,5]
[405299621,1770969050988,-1012.35719455,0.00017999,5]
[405299622,1770969050996,-1012.35719455,0.00017999,5]
[405299623,1770969051004,-1012.35719455,0.00017999,5]
[405299624,1770969051014,-1012.35719455,0.00017999,5]
[405299625,1770969051025,-722.32,0.00017999,2]
[405299626,1770969051035,-722.32,0.00017999,2]
[405299627,1770969051045,-722.32,0.00017999,2]
[405299628,1770969051055,-722.32,0.00017999,2]
[405299629,1770969051066,-722.32,0.00017999,2]
[405299630,1770969051076,-722.32,0.00017999,2]
[405299631,1770969051085,-722.32,0.00017999,2]
[405299632,1770969051097,-722.32,0.00017999,2]
[405299633,1770969051107,-722.32,0.00017999,2]
[405299634,1770969051117,-722.32,0.00017999,2]
[405299635,1770969051127,-722.32,0.00017999,2]
[405299636,1770969051136,-722.32,0.00017999,2]
[405299637,1770969051145,-722.32,0.00017999,2]
[405299638,1770969051155,-722.32,0.00017999,2]
[405299639,1770969051164,-722.45486272,0.00017999,2]
[405299640,1770969051175,-500.0,0.00017999,2]
[405299641,1770969051185,-500.0,0.00017999,2]
[405299642,1770969051194,-500.0,0.00017999,2]
[405299643,1770969051204,-500.0,0.00017999,2]
[405299644,1770969051212,-500.0,0.00017999,2]
[405299645,1770969051221,-606.16370174,0.00017999,2]
[405299646,1770969051230,-616.8,0.00017999,2]
[405299647,1770969051238,-616.8,0.00017999,2]
[405299648,1770969051247,-616.8,0.00017999,2]
[405299649,1770969051256,-616.8,0.00017999,2]
[405299650,1770969051265,-616.8,0.00017999,2]
[405299651,1770969051274,-616.8,0.00017999,2]
[405299652,1770969051282,-616.8,0.00017999,2]
[405299653,1770969051290,-616.8,0.00017999,2]
[405299654,1770969051298,-616.8,0.00017999,2]
[405299655,1770969051306,-616.8,0.00017999,2]
[405299656,1770969051315,-616.8,0.00017999,2]
[405299657,1770969051325,-616.8,0.00017999,2]
[405299658,1770969051333,-616.8,0.00017999,2]
[405299659,1770969051342,-616.8,0.00017999,2]
[405299660,1770969051352,-616.90997361,0.00017999,2]
[405299661,1770969051361,-1137.19,0.00017999,2]
[405299662,1770969051371,-1137.19,0.00017999,2]
[405299663,1770969051379,-1137.19,0.00017999,2]
[405299664,1770969051389,-1137.19,0.00017999,2]
[405299665,1770969051398,-1137.19,0.00017999,2]
[405299666,1770969051408,-1137.19,0.00017999,2]
[405299667,1770969051418,-1137.19,0.00017999,2]
[405299668,1770969051428,-1137.19,0.00017999,2]
[405299669,1770969051439,-1137.19,0.00017999,2]
[405299670,1770969051451,-1137.19,0.00017999,2]
[405299671,1770969051460,-1137.19,0.00017999,2]
[405299672,1770969051469,-1137.19,0.00017999,2]
[405299673,1770969051479,-1137.19,0.00017999,2]
[405299674,1770969051491,-1137.19,0.00017999,2]
[405299675,1770969051501,-1137.37012897,0.00017999,2]
[405299676,1770969051511,-153.87003674,0.00017999,2]
[405299677,1770969051521,-2429.84724611,0.00018,2]
[405299678,1770969051532,-150.0,0.00018,2]
[405299679,1770969051545,-2153289.06865064,0.00018,2]
[405299680,1770969051719,-335.96000004,0.00018,2]
[405299681,1770969051730,-6056.3937689,0.00018,2]
[405299682,1770969051741,-18108.79820965,0.00018,2]
[405299683,1770969051752,-79717.10611178,0.00018,2]
[405299684,1770969052245,-412.0,0.00010414,2]
[405299685,1770969052401,-5556.0,0.00010414,2]
[405299686,1770969052412,-5968.0,0.00013414,2]
[405299687,1770969052423,-5968.0,0.00016414,2]
[405299688,1770969052432,-9040.30492981,0.00018,2]
[405299689,1770969143279,10000.01,7.483e-05,2]
[405299690,1770969143306,10000.01,7.483e-05,2]
[405299691,1770969143331,10000.01,7.483e-05,2]
[405299692,1770969143356,10000.01,7.483e-05,2]
[405299693,1770969143381,10000.01,7.483e-05,2]
[405299694,1770969143407,10000.01,7.483e-05,2]
[405299695,1770969143431,10000.01,7.483e-05,2]
[405299696,1770969143455,10000.01,7.483e-05,2]
[405299697,1770969143478,10000.01,7.483e-05,2]
[405299698,1770969143502,10000.01,7.483e-05,2]
[405299699,1770969143527,5000.01,7.483e-05,2]
[405299700,1770969143550,5000.01,7.483e-05,2]
[405299701,1770969143576,5000.01,7.483e-05,2]
[405299702,1770969143599,5000.01,7.483e-05,2]
[405299703,1770969143622,5000.01,7.483e-05,2]
[405299704,1770969143648,5000.01,7.483e-05,2]
[405299705,1770969143672,5000.01,7.483e-05,2]
[405299706,1770969150164,-7411.45116824,7.483e-05,2]
[405299707,1770969150301,-10000.01,7.483e-05,2]
[405299708,1770969150436,-10000.01,7.483e-05,2]
[405299709,1770969150561,-10000.01,7.483e-05,2]
[405299710,1770969151011,-10000.01,7.483e-05,2]
[405299711,1770969151124,-10000.01,7.483e-05,2]
[405299712,1770969151421,-10000.01,7.483e-05,2]
[405299713,1770969152790,-10000.01,7.483e-05,2]
[405299714,1770969153132,-10000.01,7.483e-05,2]
[405299715,1770969153234,-10000.01,7.483e-05,2]
[405299716,1770969155867,-10000.01,7.483e-05,2]
[405299717,1770969155980,-10000.01,7.483e-05,2]
[405299718,1770969156097,-10000.01,7.483e-05,2]
[405299719,1770969156212,-10000.01,7.483e-05,2]
[405299720,1770969156322,-10000.01,7.483e-05,2]
[405299721,1770969156420,-10000.01,7.483e-05,2]
[405299722,1770969156555,-10000.01,7.483e-05,2]
[405299723,1770969159040,-10000.01,7.483e-05,2]
[405299724,1770969159243,-10000.01,7.483e-05,2]
[405299725,1770969159362,-10000.01,7.483e-05,2]
[405299726,1770969161936,-10000.01,7.483e-05,2]
[405299727,1770969162065,-10000.01,7.483e-05,2]
[405299728,1770969162184,-10000.01,7.483e-05,2]
[405299729,1770969162286,-10000.01,7.483e-05,2]
[405299730,1770969162409,-10000.01,7.483e-05,2]
[405299731,1770969162525,-10000.01,7.483e-05,2]
[405299732,1770969162642,-10000.01,7.483e-05,2]
[405299733,1770969168056,-10000.01,7.483e-05,2]
[405299734,1770969168187,-10000.01,7.483e-05,2]
[405299735,1770969168296,-10000.01,7.483e-05,2]
[405299736,1770969173030,1036.80169814,7.482e-05,2]
[405299737,1770969174136,-10000.01,7.483e-05,2]
[405299738,1770969174246,-10000.01,7.483e-05,2]
[405299739,1770969174349,-10000.01,7.483e-05,2]
[405299740,1770969183911,1073.46845352,7.482e-05,2]
[405299741,1770969195053,1134.57971249,7.482e-05,2]
[405299742,1770969207626,1012.35719455,7.482e-05,2]
[405299743,1770969208785,742.8029413,7.482e-05,2]
[405299744,1770969208805,288.1970587,7.482e-05,2]
[405299745,1770969225407,1155.41767,7.483e-05,2]
[405299746,1770969225457,2432.02880469,7.483e-05,2]
[405299747,1770969225488,222.79011993,7.483e-05,2]
[405299748,1770969227556,901.57634668,7.383e-05,2]
[405299749,1770969227577,5000.01,7.383e-05,2]
[405299750,1770969227599,638.60342369,7.383e-05,2]
[405299751,1770969241702,300.0,7.482e-05,2]
[405299752,1770969242113,300.0,7.482e-05,2]
[405299753,1770969242149,150.0,7.482e-05,2]
[405299754,1770969245749,359.74070555,7.482e-05,2]
[405299755,1770969249338,200.0,6.7e-05,2]
[405299756,1770969251427,400.0,6.8e-05,2]
[405299757,1770969253506,600.0,6.9e-05,2]
[405299758,1770969255599,800.0,7e-05,2]
[405299759,1770969258331,500.0,7.482e-05,2]
[405299760,1770969258384,500.0,7.482e-05,2]
[405299761,1770969258434,251.66587076,7.482e-05,2]
[405299762,1770969258459,248.33412924,7.482e-05,2]
[405299763,1770969258496,500.0,7.482e-05,2]
[405299764,1770969258544,172.08036688,7.482e-05,2]
[405299765,1770969272951,500.0,7.383e-05,2]
[405299766,1770969301713,1200.0,7.482e-05,2]
[405299767,1770969301914,300.0,7.482e-05,2]
[405299768,1770969361758,300.0,7.482e-05,2]
[405299769,1770969421784,300.0,7.482e-05,2]
[405299770,1770969422191,150.0,7.482e-05,2]
[405299771,1770969422460,300.0,7.482e-05,2]
[405299772,1770969435123,252.8696,7.383e-05,2]
[405299773,1770969455338,776.72590388,7.383e-05,2]
[405299774,1770969455363,5000.01,7.383e-05,2]
[405299775,1770969455388,5000.01,7.383e-05,2]
[405299776,1770969455411,5000.01,7.383e-05,2]
[405299777,1770969455434,5000.01,7.383e-05,2]
[405299778,1770969455463,5000.01,7.383e-05,2]
[405299779,1770969455488,5000.01,7.383e-05,2]
[405299780,1770969455513,5000.01,7.383e-05,2]
[405299781,1770969455537,5000.01,7.383e-05,2]
[405299782,1770969455561,5000.01,7.383e-05,2]
[405299783,1770969455586,10000.01,7.383e-05,2]
[405299784,1770969455613,10000.01,7.383e-05,2]
[405299785,1770969455637,10000.01,7.383e-05,2]
[405299786,1770969455662,10000.01,7.383e-05,2]
[405299787,1770969455694,10000.01,7.383e-05,2]
[405299788,1770969455721,10000.01,7.383e-05,2]
[405299789,1770969455748,10000.01,7.383e-05,2]
[405299790,1770969455776,10000.01,7.383e-05,2]
[405299791,1770969455801,10000.01,7.383e-05,2]
[405299792,1770969463133,-10000.01,7.383e-05,2]
[405299793,1770969463237,-10000.01,7.383e-05,2]
[405299794,1770969463395,-10000.01,7.383e-05,2]
[405299795,1770969463492,-10000.01,7.383e-05,2]
[405299796,1770969463613,-10000.01,7.383e-05,2]
[405299797,1770969463731,-10000.01,7.383e-05,2]
[405299798,1770969463847,-10000.01,7.383e-05,2]
[405299799,1770969464109,-10000.01,7.383e-05,2]
[405299800,1770969464358,-10000.01,7.383e-05,2]
[405299801,1770969466303,-10000.01,7.383e-05,2]
[405299802,1770969469335,-10000.01,7.383e-05,2]
[405299803,1770969469450,-10000.01,7.383e-05,2]
[405299804,1770969469576,-10000.01,7.383e-05,2]
[405299805,1770969469714,-10000.01,7.383e-05,2]
[405299806,1770969469824,-10000.01,7.383e-05,2]
[405299807,1770969469936,-10000.01,7.383e-05,2]
[405299808,1770969470047,-10000.01,7.383e-05,2]
[405299809,1770969470170,-10000.01,7.383e-05,2]
[405299810,1770969470302,-10000.01,7.383e-05,2]
[405299811,1770969472504,-10000.01,7.383e-05,2]
[405299812,1770969475291,-10000.01,7.383e-05,2]
[405299813,1770969475406,-10000.01,7.383e-05,2]
[405299814,1770969475510,-10000.01,7.383e-05,2]
[405299815,1770969475642,-10000.01,7.383e-05,2]
[405299816,1770969475760,-10000.01,7.383e-05,2]
[405299817,1770969475867,-10000.01,7.383e-05,2]
[405299818,1770969475990,-10000.01,7.383e-05,2]
[405299819,1770969476107,-10000.01,7.383e-05,2]
[405299820,1770969476225,-10000.01,7.383e-05,2]
[405299821,1770969476554,-5000.01,7.383e-05,2]
[405299822,1770969476712,-5000.01,7.383e-05,2]
[405299823,1770969476818,-5000.01,7.383e-05,2]
[405299824,1770969476932,-5000.01,7.383e-05,2]
[405299825,1770969477046,-5000.01,7.383e-05,2]
[405299826,1770969477163,-5000.01,7.383e-05,2]
[405299827,1770969477308,-5000.01,7.383e-05,2]
[405299828,1770969477417,-5000.01,7.383e-05,2]
[405299829,1770969478479,-10000.01,7.383e-05,2]
[405299830,1770969479352,-5000.01,7.383e-05,2]
[405299831,1770969479517,-5000.01,7.383e-05,2]
[405299832,1770969481453,-10000.01,7.383e-05,2]
[405299833,1770969481581,-10000.01,7.383e-05,2]
[405299834,1770969481713,-10000.01,7.383e-05,2]
[405299835,1770969481856,-300.0,7.382e-05,2]
[405299836,1770969481891,-9400.01,7.383e-05,2]
[405299837,1770969481962,-10000.01,7.383e-05,2]
[405299838,1770969482082,-10000.01,7.383e-05,2]
[405299839,1770969482196,-10000.01,7.383e-05,2]
[405299840,1770969482319,-10000.01,7.383e-05,2]
[405299841,1770969482470,-5000.01,7.383e-05,2]
[405299842,1770969482636,-10000.01,7.383e-05,2]
[405299843,1770969482688,-5000.01,7.383e-05,2]
[405299844,1770969482811,-5000.01,7.383e-05,2]
[405299845,1770969482918,-5000.01,7.383e-05,2]
[405299846,1770969483059,-5000.01,7.383e-05,2]
[405299847,1770969483619,-5000.01,7.383e-05,2]
[405299848,1770969483633,-5000.01,7.383e-05,2]
[405299849,1770969484474,-10000.01,7.383e-05,2]
[405299850,1770969484622,-10000.01,7.383e-05,2]
[405299851,1770969485454,-5000.01,7.383e-05,2]
[405299852,1770969485569,-5000.01,7.383e-05,2]
[405299853,1770969488474,-5000.01,7.383e-05,2]
[405299854,1770969488592,-5000.01,7.383e-05,2]
[405299855,1770969488727,-5000.01,7.383e-05,2]
[405299856,1770969488849,-5000.01,7.383e-05,2]
[405299857,1770969488973,-5000.01,7.383e-05,2]
[405299858,1770969489125,-5000.01,7.383e-05,2]
[405299859,1770969489257,-5000.01,7.383e-05,2]
[405299868,1770969965745,-1000.15,7.235e-05,2]
[405299869,1770969965767,-162.822,7.235e-05,2]
[405299870,1770969965788,-250.0,7.267e-05,2]
[405299871,1770969965809,-1200.0,7.272e-05,2]
[405299872,1770969965832,-300.0,7.272e-05,2]
[405299873,1770969965852,-150.0,7.272e-05,2]
[405299874,1770969965877,-300.0,7.272e-05,2]
[405299875,1770969965900,-226.44206738,7.272e-05,2]
[405299876,1770969965923,-300.52720013,7.272e-05,2]
[405299877,1770969965948,-241.34226299,7.272e-05,2]
[405299878,1770969965972,-329.05251929,7.272e-05,2]
[405299879,1770969965998,-5543.66395021,7.273e-05,2]
[405299880,1770970029677,300.0,6.7e-05,2]
[405299881,1770970031765,700.0,6.8e-05,2]
[405299883,1770970033855,1000.0,6.9e-05,2]
[405299884,1770970035974,1400.0,7e-05,2]
[405299902,1770970172724,539.67,6.455e-05,2]
[405299903,1770970172927,539.67,6.601e-05,2]
[405299904,1770970173328,539.67,6.746e-05,2]
[405299905,1770970173379,539.67,6.892e-05,2]
[405299906,1770970173537,539.67,7.038e-05,2]
[405299907,1770970174857,-10004.0,7.163e-05,2]
[405299908,1770970231292,-1200.0,7.162e-05,2]
[405299910,1770970231301,-412.39440711,7.163e-05,2]
[405299914,1770970231342,-3037.07724405,7.163e-05,2]
[405299915,1770970231353,-798.714997,7.163e-05,2]
[405299916,1770970231365,-612.78854042,7.163e-05,2]
[405299917,1770970231393,-17398.92525833,7.163e-05,2]
[405299918,1770970231403,-150.0,7.172e-05,2]
[405299919,1770970231412,-500.0,7.172e-05,2]
[405299920,1770970231423,-500.0,7.172e-05,2]
[405299921,1770970231433,-500.0,7.172e-05,2]
[405299922,1770970231443,-412.71366249,7.172e-05,2]
[405299923,1770970231453,-500.0,7.172e-05,2]
[405299924,1770970231463,-329.05251929,7.172e-05,2]
[405299925,1770970231475,-3142.38417293,7.173e-05,2]
[405299926,1770970231487,-1159.94357071,7.173e-05,2]
[405299927,1770970231499,-2072.44626956,7.173e-05,2]
[405299928,1770970231511,-871.14161176,7.173e-05,2]
[405299929,1770970231523,-278557.96023075,7.173e-05,2]
[405299930,1770970231534,-60303.23862425,7.173e-05,2]
[405300086,1770970237427,-401.45249437,7.172e-05,2]
[405300087,1770970237437,-226.44206738,7.172e-05,2]
[405300088,1770970237447,-241.34226299,7.172e-05,2]
[405300089,1770970237457,-3153892.88552004,7.173e-05,2]
[405300090,1770970237466,-15361.95935847,7.183e-05,2]
[405300091,1770970237477,-2768.40881958,7.183e-05,2]
[405300092,1770970237486,-539.67,7.183e-05,2]
[405300093,1770970237497,-153.13440166,7.246e-05,2]
[405300094,1770970237506,-382.82623164,7.246e-05,2]
[405300095,1770970237516,-1000.0,7.272e-05,2]
[405300096,1770970237525,-450.0,7.272e-05,2]
[405300097,1770970237535,-360.06475,7.273e-05,2]
[405300098,1770970237544,-332.78,7.3e-05,2]
[405300099,1770970237553,-539.67,7.329e-05,2]
[405300100,1770970237563,-9999.99,7.382e-05,2]
[405300101,1770970237574,-150.99,7.382e-05,2]
[405300102,1770970237583,-999.99,7.382e-05,2]
[405300103,1770970237592,-499.99,7.382e-05,2]